fUST/lending_fUST_20240216
["ID","MTS","AMOUNT","RATE_DAILY","PERIOD"]
[314171491,1708041046902,-1000.0,0.00022369,2]
[314171492,1708041046911,-1000.0,0.00022376,2]
[314171493,1708041046921,-413.900241,0.00022376,2]
[314171494,1708041046929,-413.900241,0.00022376,2]
[314171495,1708041046938,-357.238219,0.00022376,2]
[314171496,1708041046947,-357.238219,0.00022376,2]
[314171497,1708041046957,-1000.0,0.00022378,2]
[314171498,1708041046966,-1000.0,0.00022382,2]
[314171499,1708041046975,-566.97292355,0.0002241,2]
[314171500,1708041047153,-433.02707645,0.0002241,2]
[314171501,1708041047163,-1000.0,0.00022416,2]
[314171502,1708041047172,-1000.0,0.00022419,2]
[314171503,1708041047182,-1000.0,0.00022424,2]
[314171504,1708041047191,-1000.0,0.00022427,2]
[314171505,1708041047200,-300.0,0.00022454,2]
[314171506,1708041047209,-1000.0,0.0002246,2]
[314171507,1708041047218,-151.0,0.0002246,2]
[314171508,1708041047228,-500.0,0.00022465,2]
[314171509,1708041047237,-500.0,0.00022465,2]
[314171510,1708041047246,-155.00310006,0.00022465,2]
[314171511,1708041047255,-500.0,0.00022465,2]
[314171512,1708041047265,-158.7723618,0.00022465,2]
[314171513,1708041047274,-151.0,0.00022465,2]
[314171514,1708041047284,-543.36,0.00022465,2]
[314171515,1708041047293,-500.0,0.00022465,2]
[314171516,1708041047303,-541.15284659,0.00022465,2]
[314171517,1708041047312,-826.02,0.00022465,2]
[314171518,1708041047321,-500.0,0.00022465,2]
[314171519,1708041047331,-500.0,0.00022465,2]
[314171520,1708041047339,-659.1,0.00022465,2]
[314171521,1708041047349,-500.0,0.00022465,2]
[314171522,1708041047358,-500.0,0.00022465,2]
[314171523,1708041047367,-500.0,0.00022465,2]
[314171524,1708041047376,-605.37,0.00022465,2]
[314171525,1708041047385,-500.0,0.00022465,2]
[314171526,1708041047394,-1998.38,0.00022465,2]
[314171527,1708041047403,-680.95,0.00022465,2]
[314171528,1708041047412,-500.0,0.00022465,2]
[314171529,1708041047432,-500.0,0.00022465,2]
[314171530,1708041047451,-3358.91,0.00022465,2]
[314171531,1708041047470,-500.0,0.00022465,2]
[314171532,1708041047489,-500.0,0.00022465,2]
[314171533,1708041047505,-545.23134524,0.00022465,2]
[314171534,1708041047522,-500.0,0.00022465,2]
[314171535,1708041047539,-500.0,0.00022465,2]
[314171536,1708041047558,-500.0,0.00022465,2]
[314171537,1708041047575,-632.87,0.00022465,2]
[314171538,1708041047592,-659.88,0.00022465,2]
[314171539,1708041047613,-558.62,0.00022465,2]
[314171540,1708041047633,-500.0,0.00022465,2]
[314171541,1708041047648,-500.0,0.00022465,2]
[314171542,1708041047665,-500.0,0.00022465,2]
[314171543,1708041047679,-500.0,0.00022465,2]
[314171544,1708041047694,-1973.52,0.00022465,2]
[314171545,1708041047707,-502.57460696,0.00022465,2]
[314171546,1708041047722,-500.49656635,0.00022465,2]
[314171547,1708041047736,-500.0,0.00022465,2]
[314171548,1708041047750,-500.0,0.00022465,2]
[314171549,1708041047764,-500.0,0.00022465,2]
[314171550,1708041047778,-500.0,0.00022465,2]
[314171551,1708041047791,-632.37272132,0.00022465,2]
[314171552,1708041047805,-500.0,0.00022465,2]
[314171553,1708041047818,-340.40376875,0.00022465,2]
[314171554,1708041047832,-941.0,0.00022465,2]
[314171555,1708041047845,-500.0,0.00022465,2]
[314171556,1708041047861,-500.0,0.00022465,2]
[314171557,1708041047875,-500.0,0.00022465,2]
[314171558,1708041047885,-500.0,0.00022465,2]
[314171559,1708041047894,-500.0,0.00022465,2]
[314171560,1708041047903,-1273.42,0.00022465,2]
[314171561,1708041047911,-1866.65,0.00022465,2]
[314171562,1708041047920,-907.8,0.00022465,2]
[314171563,1708041047929,-500.0,0.00022465,2]
[314171564,1708041047939,-410.53364515,0.00022465,2]
[314171565,1708041047948,-151.0,0.00022465,2]
[314171566,1708041047957,-151.0,0.00022465,2]
[314171567,1708041047966,-371.13100276,0.00022465,2]
[314171568,1708041048224,-502.26498,0.00021917,2]
[314171569,1708041048233,-397.55697666,0.00021917,2]
[314171570,1708041048299,-102.44302334,0.00021917,2]
[314171571,1708041048308,-253.39231964,0.00021917,2]
[314171572,1708041048318,-128.86899724,0.00022465,2]
[314171573,1708041048327,-948.26,0.00022465,2]
[314171574,1708041048336,-267.63397741,0.00022465,2]
[314171575,1708041048345,-715.68,0.00022465,2]
[314171576,1708041048354,-575.53,0.00022465,2]
[314171577,1708041048363,-500.0,0.00022465,2]
[314171578,1708041048373,-1063.23,0.00022465,2]
[314171579,1708041048382,-500.0,0.00022465,2]
[314171580,1708041048391,-469.72387557,0.00022465,2]
[314171581,1708041048403,-387.96612443,0.00022465,2]
[314171582,1708041048412,-500.0,0.00022465,2]
[314171583,1708041048422,-276.7589606,0.00022465,2]
[314171584,1708041048431,-500.0,0.00022465,2]
[314171585,1708041048439,-500.0,0.00022465,2]
[314171586,1708041048448,-1027.93,0.00022465,2]
[314171587,1708041048457,-500.0,0.00022465,2]
[314171588,1708041048466,-500.0,0.00022465,2]
[314171589,1708041048475,-500.0,0.00022465,2]
[314171590,1708041048484,-151.0,0.00022465,2]
[314171591,1708041048493,-500.0,0.00022465,2]
[314171592,1708041048502,-500.0,0.00022465,2]
[314171593,1708041048511,-500.0,0.00022465,2]
[314171594,1708041048520,-9034.03,0.00022465,2]
[314171595,1708041048529,-584.13,0.00022465,2]
[314171596,1708041048538,-3568.57,0.00022465,2]
[314171597,1708041048546,-503.93799535,0.00022465,2]
[314171598,1708041048554,-510.4,0.00022465,2]
[314171599,1708041048566,-1202.48,0.00022465,2]
[314171600,1708041048576,-10808.99,0.00022465,2]
[314171601,1708041048585,-251.56173932,0.00022465,2]
[314171602,1708041048594,-3788.8,0.00022465,2]
[314171603,1708041048603,-500.0,0.00022465,2]
[314171604,1708041048612,-3846.85,0.00022465,2]
[314171605,1708041048621,-500.0,0.00022465,2]
[314171606,1708041048630,-151.0,0.00022465,2]
[314171607,1708041048640,-151.0,0.00022465,2]
[314171608,1708041048650,-500.0,0.00022465,2]
[314171609,1708041048660,-1920.59,0.00022465,2]
[314171610,1708041048669,-3038.09,0.00022465,2]
[314171611,1708041048678,-500.0,0.00022465,2]
[314171612,1708041048686,-500.0,0.00022465,2]
[314171613,1708041048700,-500.0,0.00022465,2]
[314171614,1708041048710,-151.0,0.00022465,2]
[314171615,1708041048719,-151.0,0.00022465,2]
[314171616,1708041048728,-2055.17,0.00022465,2]
[314171617,1708041048737,-500.0,0.00022465,2]
[314171618,1708041048747,-14652.49,0.00022465,2]
[314171619,1708041048756,-500.0,0.00022465,2]
[314171620,1708041048765,-500.0,0.00022465,2]
[314171621,1708041048774,-1000.0,0.00022465,2]
[314171622,1708041048783,-1443.28,0.00022465,2]
[314171623,1708041048792,-500.0,0.00022465,2]
[314171624,1708041048801,-413.900241,0.00022465,2]
[314171625,1708041048810,-413.900241,0.00022465,2]
[314171626,1708041048819,-500.0,0.00022465,2]
[314171627,1708041048828,-222.16921897,0.00022465,2]
[314171628,1708041048837,-2097.52,0.00022465,2]
[314171629,1708041048846,-500.0,0.00022465,2]
[314171630,1708041048859,-500.0,0.00022465,2]
[314171631,1708041048868,-3230.64,0.00022465,2]
[314171632,1708041048877,-500.0,0.00022465,2]
[314171633,1708041048886,-500.0,0.00022465,2]
[314171634,1708041048895,-2797.19,0.00022465,2]
[314171635,1708041048904,-357.238219,0.00022465,2]
[314171636,1708041048913,-357.238219,0.00022465,2]
[314171637,1708041048922,-500.0,0.00022465,2]
[314171638,1708041048930,-500.0,0.00022465,2]
[314171639,1708041048939,-500.0,0.00022465,2]
[314171640,1708041048948,-531.84,0.00022465,2]
[314171641,1708041048957,-1210.85,0.00022465,2]
[314171642,1708041048966,-1306.81,0.00022465,2]
[314171643,1708041048975,-17131.84,0.00022465,2]
[314171644,1708041048984,-918.32,0.00022465,2]
[314171645,1708041048993,-500.0,0.00022465,2]
[314171646,1708041049002,-455.91316128,0.00022465,2]
[314171647,1708041049011,-16248.46,0.00022465,2]
[314171648,1708041049020,-540.53709955,0.00022465,2]
[314171649,1708041049029,-23387.28,0.00022465,2]
[314171650,1708041049038,-14219.6,0.00022465,2]
[314171651,1708041049047,-2706.1,0.00022465,2]
[314171652,1708041049056,-6136.03,0.00022465,2]
[314171653,1708041049065,-500.0,0.00022465,2]
[314171654,1708041049073,-500.0,0.00022465,2]
[314171655,1708041049082,-2287.55,0.00022465,2]
[314171656,1708041049092,-500.0,0.00022465,2]
[314171657,1708041049100,-500.0,0.00022465,2]
[314171658,1708041049110,-813.3,0.00022465,2]
[314171659,1708041049119,-1708.32,0.00022465,2]
[314171660,1708041049128,-1916.58,0.00022465,2]
[314171661,1708041049138,-619.6,0.00022465,2]
[314171662,1708041049147,-3461.87,0.00022465,2]
[314171663,1708041049157,-466.53477123,0.00022473,2]
[314171664,1708041049166,-1000.0,0.00022477,2]
[314171665,1708041049175,-1000.0,0.00022478,2]
[314171666,1708041049184,-1000.0,0.00022485,2]
[314171667,1708041049194,-1000.0,0.00022488,2]
[314171668,1708041049203,-1000.0,0.00022513,2]
[314171669,1708041049213,-1000.0,0.00022521,2]
[314171670,1708041049223,-1000.0,0.00022523,2]
[314171671,1708041049233,-1000.0,0.00022532,2]
[314171672,1708041049242,-1000.0,0.00022534,2]
[314171673,1708041049251,-1000.0,0.00022551,2]
[314171674,1708041049260,-500.0,0.000226,2]
[314171675,1708041049269,-321.73660798,0.00022699,2]
[314171676,1708041049279,-500.0,0.00022739,2]
[314171677,1708041049289,-500.0,0.00022739,2]
[314171678,1708041049298,-500.0,0.00022739,2]
[314171679,1708041049307,-151.0,0.00022739,2]
[314171680,1708041049316,-543.36,0.00022739,2]
[314171681,1708041049326,-500.0,0.00022739,2]
[314171682,1708041049335,-826.02,0.00022739,2]
[314171683,1708041049344,-500.0,0.00022739,2]
[314171684,1708041049353,-500.0,0.00022739,2]
[314171685,1708041049362,-659.1,0.00022739,2]
[314171686,1708041049372,-500.0,0.00022739,2]
[314171687,1708041049381,-500.0,0.00022739,2]
[314171688,1708041049390,-500.0,0.00022739,2]
[314171689,1708041049400,-605.37,0.00022739,2]
[314171690,1708041049408,-500.0,0.00022739,2]
[314171691,1708041049417,-1998.38,0.00022739,2]
[314171692,1708041049426,-680.95,0.00022739,2]
[314171693,1708041049435,-500.0,0.00022739,2]
[314171694,1708041049444,-500.0,0.00022739,2]
[314171695,1708041049453,-3358.91,0.00022739,2]
[314171696,1708041049462,-500.0,0.00022739,2]
[314171697,1708041049472,-586.01755894,0.00022739,2]
[314171698,1708041049481,-500.0,0.00022739,2]
[314171699,1708041049490,-500.0,0.00022739,2]
[314171700,1708041049499,-500.0,0.00022739,2]
[314171701,1708041049508,-632.87,0.00022739,2]
[314171702,1708041049517,-659.88,0.00022739,2]
[314171703,1708041049527,-558.62,0.00022739,2]
[314171704,1708041049535,-500.0,0.00022739,2]
[314171705,1708041049544,-577.04757293,0.00022739,2]
[314171706,1708041049554,-500.0,0.00022739,2]
[314171707,1708041049566,-500.0,0.00022739,2]
[314171708,1708041049575,-1973.52,0.00022739,2]
[314171709,1708041049584,-500.0,0.00022739,2]
[314171710,1708041049594,-500.0,0.00022739,2]
[314171711,1708041049603,-500.0,0.00022739,2]
[314171712,1708041049612,-500.0,0.00022739,2]
[314171713,1708041049621,-500.0,0.00022739,2]
[314171714,1708041049630,-941.0,0.00022739,2]
[314171715,1708041049642,-336.43783872,0.00022739,2]
[314171716,1708041049652,-500.0,0.00022739,2]
[314171717,1708041049661,-500.0,0.00022739,2]
[314171718,1708041049672,-500.0,0.00022739,2]
[314171719,1708041049682,-500.0,0.00022739,2]
[314171720,1708041049693,-1273.42,0.00022739,2]
[314171721,1708041049703,-1866.65,0.00022739,2]
[314171722,1708041049714,-907.8,0.00022739,2]
[314171723,1708041049725,-500.0,0.00022739,2]
[314171724,1708041049735,-230.523565,0.00022739,2]
[314171725,1708041049744,-500.0,0.00022739,2]
[314171726,1708041049753,-948.26,0.00022739,2]
[314171727,1708041049762,-715.68,0.00022739,2]
[314171728,1708041049771,-575.53,0.00022739,2]
[314171729,1708041049779,-500.0,0.00022739,2]
[314171730,1708041049788,-1063.23,0.00022739,2]
[314171731,1708041049797,-500.0,0.00022739,2]
[314171732,1708041049806,-857.69,0.00022739,2]
[314171733,1708041049815,-500.0,0.00022739,2]
[314171734,1708041049825,-398.63482921,0.00022739,2]
[314171735,1708041049834,-500.0,0.00022739,2]
[314171736,1708041049843,-1027.93,0.00022739,2]
[314171737,1708041049852,-500.0,0.00022739,2]
[314171738,1708041049862,-529.90121524,0.00022739,2]
[314171739,1708041049871,-500.0,0.00022739,2]
[314171740,1708041049880,-151.0,0.00022739,2]
[314171741,1708041049889,-500.0,0.00022739,2]
[314171742,1708041049898,-500.0,0.00022739,2]
[314171743,1708041049907,-500.0,0.00022739,2]
[314171744,1708041049916,-9034.03,0.00022739,2]
[314171745,1708041049925,-584.13,0.00022739,2]
[314171746,1708041049934,-3568.57,0.00022739,2]
[314171747,1708041049943,-510.4,0.00022739,2]
[314171748,1708041049952,-1202.48,0.00022739,2]
[314171749,1708041049961,-10808.99,0.00022739,2]
[314171750,1708041050048,-3788.8,0.00022739,2]
[314171751,1708041050058,-500.0,0.00022739,2]
[314171752,1708041050067,-3846.85,0.00022739,2]
[314171753,1708041050076,-615.53573992,0.00022739,2]
[314171754,1708041050086,-151.0,0.00022739,2]
[314171755,1708041050095,-235.92277961,0.00022739,2]
[314171756,1708041050105,-1920.59,0.00022739,2]
[314171757,1708041050114,-3038.09,0.00022739,2]
[314171758,1708041050123,-500.0,0.00022739,2]
[314171759,1708041050134,-500.0,0.00022739,2]
[314171760,1708041050143,-500.0,0.00022739,2]
[314171761,1708041050152,-151.0,0.00022739,2]
[314171762,1708041050162,-2055.17,0.00022739,2]
[314171763,1708041050171,-500.0,0.00022739,2]
[314171764,1708041050181,-14652.49,0.00022739,2]
[314171765,1708041050190,-500.0,0.00022739,2]
[314171766,1708041050200,-1000.0,0.00022739,2]
[314171767,1708041050209,-1443.28,0.00022739,2]
[314171768,1708041050218,-500.0,0.00022739,2]
[314171769,1708041050228,-413.900241,0.00022739,2]
[314171770,1708041050237,-413.900241,0.00022739,2]
[314171771,1708041050246,-500.0,0.00022739,2]
[314171772,1708041050255,-2097.52,0.00022739,2]
[314171773,1708041050264,-500.0,0.00022739,2]
[314171774,1708041050273,-231.34265399,0.00022739,2]
[314171775,1708041050283,-3230.64,0.00022739,2]
[314171776,1708041050292,-317.16220813,0.00022739,2]
[314171777,1708041050301,-500.0,0.00022739,2]
[314171778,1708041050311,-2797.19,0.00022739,2]
[314171779,1708041050320,-357.238219,0.00022739,2]
[314171780,1708041050330,-357.238219,0.00022739,2]
[314171781,1708041050339,-628.25869461,0.00022739,2]
[314171782,1708041050348,-500.0,0.00022739,2]
[314171783,1708041050357,-500.0,0.00022739,2]
[314171784,1708041050366,-531.84,0.00022739,2]
[314171785,1708041050375,-1210.85,0.00022739,2]
[314171786,1708041050385,-1306.81,0.00022739,2]
[314171787,1708041050394,-17131.84,0.00022739,2]
[314171788,1708041050403,-918.32,0.00022739,2]
[314171789,1708041050412,-500.0,0.00022739,2]
[314171790,1708041050421,-16248.46,0.00022739,2]
[314171791,1708041050431,-23387.28,0.00022739,2]
[314171792,1708041050440,-9841.11717535,0.00022739,2]
[314171793,1708041256191,155.19254407,0.000176,2]
[314171794,1708041589090,2816.594311,0.00033,120]
[314171795,1708041698642,2816.594311,0.00033,120]
[314171867,1708042238627,-160.639964,0.00019225,2]
[314171869,1708042238637,-10140.09631163,0.00019314,2]
[314171871,1708042238647,-24900.0,0.00019315,2]
[314171873,1708042238656,-3000.0,0.00019631,2]
[314171875,1708042238666,-168.638215,0.0001967,2]
[314171877,1708042238675,-155.32142446,0.0002,2]
[314171880,1708042238684,-2816.594311,0.00020151,2]
[314171882,1708042238694,-200.0,0.00020554,2]
[314171884,1708042238703,-200.0,0.00020554,2]
[314171886,1708042238712,-155.01705188,0.00020984,2]
[314171888,1708042238722,-10011.04675973,0.00021,2]
[314171890,1708042238732,-50000.0,0.00021597,2]
[314171892,1708042238741,-435.05101772,0.00021715,2]
[314171894,1708042238750,-435.05101768,0.00021741,2]
[314171896,1708042238760,-435.05101768,0.00021766,2]
[314171897,1708042238769,-435.05101768,0.00021792,2]
[314171899,1708042238778,-284.68571914,0.00021815,2]
[314171901,1708042238788,-500.0,0.00021815,2]
[314171903,1708042238797,-500.0,0.00021815,2]
[314171905,1708042238807,-500.0,0.00021815,2]
[314171907,1708042238816,-500.0,0.00021815,2]
[314171909,1708042238826,-500.0,0.00021815,2]
[314171911,1708042238835,-500.0,0.00021815,2]
[314171914,1708042238844,-204.94654468,0.00021815,2]
[314171916,1708042238854,-500.0,0.00021815,2]
[314171918,1708042238863,-500.0,0.00021815,2]
[314171920,1708042238874,-500.0,0.00021815,2]
[314171922,1708042238883,-500.0,0.00021815,2]
[314171924,1708042238892,-500.0,0.00021815,2]
[314171926,1708042238901,-500.0,0.00021815,2]
[314171928,1708042238910,-500.0,0.00021815,2]
[314171930,1708042238919,-500.0,0.00021815,2]
[314171932,1708042238930,-500.0,0.00021815,2]
[314171934,1708042238942,-500.0,0.00021815,2]
[314171936,1708042238951,-500.0,0.00021815,2]
[314171949,1708042239065,-500.0,0.00021815,2]
[314171951,1708042239077,-500.0,0.00021815,2]
[314171953,1708042239086,-500.0,0.00021815,2]
[314171955,1708042239095,-500.0,0.00021815,2]
[314171957,1708042239104,-500.0,0.00021815,2]
[314171959,1708042239113,-500.0,0.00021815,2]
[314171961,1708042239122,-500.0,0.00021815,2]
[314171963,1708042239131,-500.0,0.00021815,2]
[314171965,1708042239140,-500.0,0.00021815,2]
[314171967,1708042239149,-500.0,0.00021815,2]
[314171969,1708042239158,-500.0,0.00021815,2]
[314171971,1708042239167,-245.36178591,0.00021815,2]
[314171973,1708042239176,-500.0,0.00021815,2]
[314171974,1708042239185,-500.0,0.00021815,2]
[314171977,1708042239194,-500.0,0.00021815,2]
[314171978,1708042239203,-500.0,0.00021815,2]
[314171980,1708042239212,-500.0,0.00021815,2]
[314171982,1708042239221,-500.0,0.00021815,2]
[314171984,1708042239230,-500.0,0.00021815,2]
[314171986,1708042239240,-500.0,0.00021815,2]
[314171989,1708042239249,-500.0,0.00021815,2]
[314171991,1708042239259,-500.0,0.00021815,2]
[314171993,1708042239269,-500.0,0.00021815,2]
[314171994,1708042239278,-500.0,0.00021815,2]
[314171997,1708042239287,-500.0,0.00021815,2]
[314171998,1708042239296,-500.0,0.00021815,2]
[314172000,1708042239307,-500.0,0.00021815,2]
[314172003,1708042239317,-500.0,0.00021815,2]
[314172005,1708042239326,-500.0,0.00021815,2]
[314172007,1708042239335,-500.0,0.00021815,2]
[314172009,1708042239345,-500.0,0.00021815,2]
[314172011,1708042239353,-500.0,0.00021815,2]
[314172013,1708042239362,-500.0,0.00021815,2]
[314172014,1708042239372,-500.0,0.00021815,2]
[314172016,1708042239381,-500.0,0.00021815,2]
[314172018,1708042239391,-500.0,0.00021815,2]
[314172020,1708042239401,-500.0,0.00021815,2]
[314172022,1708042239411,-500.0,0.00021815,2]
[314172024,1708042239421,-500.0,0.00021815,2]
[314172026,1708042239430,-500.0,0.00021815,2]
[314172028,1708042239440,-500.0,0.00021815,2]
[314172030,1708042239450,-500.0,0.00021815,2]
[314172033,1708042239461,-500.0,0.00021815,2]
[314172034,1708042239471,-500.0,0.00021815,2]
[314172036,1708042239480,-500.0,0.00021815,2]
[314172039,1708042239490,-500.0,0.00021815,2]
[314172040,1708042239500,-500.0,0.00021815,2]
[314172042,1708042239509,-500.0,0.00021815,2]
[314172044,1708042239519,-500.0,0.00021815,2]
[314172046,1708042239529,-500.0,0.00021815,2]
[314172048,1708042239538,-500.0,0.00021815,2]
[314172050,1708042239548,-500.0,0.00021815,2]
[314172052,1708042239557,-500.0,0.00021815,2]
[314172054,1708042239566,-500.0,0.00021815,2]
[314172056,1708042239575,-650.0,0.00021815,2]
[314172058,1708042239585,-500.0,0.00021815,2]
[314172060,1708042239594,-642.07465602,0.00021815,2]
[314172063,1708042239605,-500.0,0.00021815,2]
[314172065,1708042239614,-500.0,0.00021815,2]
[314172066,1708042239624,-500.0,0.00021815,2]
[314172068,1708042239633,-500.0,0.00021815,2]
[314172070,1708042239643,-500.0,0.00021815,2]
[314172072,1708042239653,-500.0,0.00021815,2]
[314172075,1708042239663,-500.0,0.00021815,2]
[314172077,1708042239672,-250.0,0.00021815,2]
[314172079,1708042239682,-500.0,0.00021815,2]
[314172081,1708042239692,-500.0,0.00021815,2]
[314172083,1708042239702,-500.0,0.00021815,2]
[314172085,1708042239712,-500.0,0.00021815,2]
[314172087,1708042239722,-500.0,0.00021815,2]
[314172089,1708042239732,-500.0,0.00021815,2]
[314172091,1708042239742,-500.0,0.00021815,2]
[314172093,1708042239752,-500.0,0.00021815,2]
[314172095,1708042239762,-500.0,0.00021815,2]
[314172097,1708042239771,-639.33595209,0.00021815,2]
[314172099,1708042239781,-500.0,0.00021815,2]
[314172101,1708042239790,-500.0,0.00021815,2]
[314172103,1708042239798,-521.27239921,0.00021815,2]
[314172105,1708042239807,-1098.12115147,0.00021815,2]
[314172107,1708042239816,-1098.12115147,0.00021815,2]
[314172109,1708042239825,-1098.12115147,0.00021815,2]
[314172111,1708042239835,-1098.12115147,0.00021815,2]
[314172113,1708042239843,-1098.12115147,0.00021815,2]
[314172115,1708042239852,-1098.12115147,0.00021815,2]
[314172117,1708042239861,-1098.12115147,0.00021815,2]
[314172119,1708042239870,-1098.12115147,0.00021815,2]
[314172121,1708042239879,-500.0,0.00021815,2]
[314172122,1708042239888,-500.0,0.00021815,2]
[314172124,1708042239897,-500.0,0.00021815,2]
[314172127,1708042239907,-500.0,0.00021815,2]
[314172129,1708042239916,-500.0,0.00021815,2]
[314172131,1708042239926,-500.0,0.00021815,2]
[314172133,1708042239938,-500.0,0.00021815,2]
[314172134,1708042239947,-500.0,0.00021815,2]
[314172137,1708042239956,-486.14153652,0.00021815,2]
[314172139,1708042239965,-500.0,0.00021815,2]
[314172140,1708042239976,-500.0,0.00021815,2]
[314172142,1708042239985,-500.0,0.00021815,2]
[314172144,1708042239994,-300.0,0.00021815,2]
[314172147,1708042240004,-217.58507873,0.00021815,2]
[314172148,1708042240014,-500.0,0.00021815,2]
[314172150,1708042240023,-500.0,0.00021815,2]
[314172152,1708042240031,-500.0,0.00021815,2]
[314172154,1708042240040,-500.0,0.00021815,2]
[314172156,1708042240049,-500.0,0.00021815,2]
[314172158,1708042240058,-500.0,0.00021815,2]
[314172160,1708042240067,-500.0,0.00021815,2]
[314172162,1708042240076,-500.0,0.00021815,2]
[314172164,1708042240085,-500.0,0.00021815,2]
[314172165,1708042240094,-500.0,0.00021815,2]
[314172167,1708042240103,-500.0,0.00021815,2]
[314172169,1708042240112,-500.0,0.00021815,2]
[314172171,1708042240122,-500.0,0.00021815,2]
[314172172,1708042240131,-500.0,0.00021815,2]
[314172174,1708042240141,-500.0,0.00021815,2]
[314172176,1708042240150,-290.50670118,0.00021815,2]
[314172177,1708042240159,-500.0,0.00021815,2]
[314172179,1708042240168,-500.0,0.00021815,2]
[314172181,1708042240177,-590.64004421,0.00021815,2]
[314172182,1708042240186,-301.58992803,0.00021815,2]
[314172184,1708042240195,-500.0,0.00021815,2]
[314172186,1708042240204,-500.0,0.00021815,2]
[314172188,1708042240213,-442.90461517,0.00021815,2]
[314172190,1708042240223,-500.0,0.00021815,2]
[314172191,1708042240231,-500.0,0.00021815,2]
[314172194,1708042240252,-500.0,0.00021815,2]
[314172196,1708042240262,-500.0,0.00021815,2]
[314172198,1708042240272,-500.0,0.00021815,2]
[314172200,1708042240282,-500.0,0.00021815,2]
[314172201,1708042240292,-555.06701185,0.00021815,2]
[314172203,1708042240302,-500.0,0.00021815,2]
[314172205,1708042240311,-300.0,0.00021815,2]
[314172206,1708042240321,-166.5098615,0.00021815,2]
[314172207,1708042240331,-500.0,0.00021815,2]
[314172208,1708042240341,-250.0,0.00021815,2]
[314172209,1708042240350,-276000.0,0.00021816,2]
[314172210,1708042240359,-435.05101768,0.00021817,2]
[314172211,1708042240369,-3253.37126141,0.00021817,2]
[314172212,1708042240378,-500.0,0.00021917,2]
[314172213,1708042240388,-500.0,0.00021917,2]
[314172214,1708042240398,-500.0,0.00021917,2]
[314172215,1708042240408,-500.0,0.00021917,2]
[314172216,1708042240417,-500.0,0.00021917,2]
[314172217,1708042240426,-500.0,0.00021917,2]
[314172218,1708042240436,-500.0,0.00021917,2]
[314172219,1708042240446,-565.12591649,0.00021917,2]
[314172220,1708042240455,-500.0,0.00021917,2]
[314172221,1708042240466,-553.76,0.00021917,2]
[314172222,1708042240476,-577.4,0.00021917,2]
[314172223,1708042240485,-500.0,0.00021917,2]
[314172224,1708042240495,-500.0,0.00021917,2]
[314172225,1708042240504,-500.0,0.00021917,2]
[314172226,1708042240610,-500.0,0.00021917,2]
[314172227,1708042240619,-500.0,0.00021917,2]
[314172228,1708042240629,-403.79557639,0.00021917,2]
[314172229,1708042240638,-530.57541768,0.00021917,2]
[314172230,1708042240647,-500.0,0.00021917,2]
[314172231,1708042240657,-500.0,0.00021917,2]
[314172232,1708042240666,-500.0,0.00021917,2]
[314172233,1708042240675,-500.0,0.00021917,2]